[Event "3rd Memorial Warakomska 2019"]
[Site "Suwalki"]
[Date "2019.08.09"]
[Round "6.24"]
[White "Sanz Wawer, Daniel"]
[Black "Kulon, Klaudia"]
[Result "1/2-1/2"]
[ECO "B51"]
[WhiteElo "2154"]
[BlackElo "2331"]
[Annotator "NA"]
[PlyCount "87"]
[EventDate "2019.08.05"]
[EventType "swiss"]
[EventCountry "POL"]
[SourceTitle "playchess.com"]
[Source "ChessBase"]
[SourceQuality "1"]
[TimeControl "40/5400+30:1800+30"]

1. e4 {[%emt 0:00:00]} c5 {[%emt 0:12:53]} 2. Nf3 {[%emt 0:00:11]} d6 {[%emt 0:00:05]} 3. Bb5+ {[%emt 0:01:03]} Nd7 {[%emt 0:00:06]} 4. d4 {[%emt 0:00:50]} cxd4 {[%emt 0:00:06]} 5. Qxd4 {[%emt 0:00:08]} a6 {[%emt 0:01:11]} 6. Bxd7+ {[%emt 0:00:12]} Bxd7 {[%emt 0:00:02]} 7. Nc3 {[%emt 0:00:21]} e5 {[%emt 0:01:33]} 8. Qd3 {[%emt 0:01:49]} Rc8 {[%emt 0:00:06]} 9. O-O {[%emt 0:04:34]} Be6 {[%emt 0:00:29]} 10. Nd5 {[%emt 0:04:13]} Bxd5 {[%emt 0:09:29]} 11. Qxd5 {[%emt 0:08:45]} Qc7 {[%emt 0:08:18]} 12. Re1 {[%emt 0:05:43]} Nf6 {[%emt 0:01:42]} 13. Qb3 {[%emt 0:00:35]} h6 {[%emt 0:00:12]} 14. c3 {[%emt 0:02:21]} g6 {[%emt 0:06:08]} 15. Qa4+ {[%emt 0:11:31]} Nd7 {[%emt 0:13:20]} 16. Be3 {[%emt 0:00:26]} Bg7 {[%emt 0:01:39]} 17. Rad1 {[%emt 0:00:34]} O-O {[%emt 0:00:11]} 18. Qa3 {[%emt 0:06:03]} Rfd8 {[%emt 0:05:03]} 19. Qxd6 {[%emt 0:06:19]} Qa5 {[%emt 0:00:56]} 20. Qb4 {[%emt 0:04:34]} Qxa2 {[%emt 0:01:42]} 21. Ra1 {[%emt 0:04:30]} Qc4 {[%emt 0:07:43]} 22. Qxb7 {[%emt 0:02:31]} Nb8 {[%emt 0:00:32]} 23. Red1 {[%emt 0:04:45]} Nc6 {[%emt 0:02:13]} 24. Rxd8+ {[%emt 0:01:35]} Rxd8 {[%emt 0:00:06]} 25. Nd2 {[%emt 0:02:35]} Qb5 {[%emt 0:00:20]} 26. Qxb5 {[%emt 0:02:09]} axb5 {[%emt 0:00:02]} 27. Ra6 {[%emt 0:01:56]} Rc8 {[%emt 0:00:25]} 28. b4 {[%emt 0:03:36]} Bf8 {[%emt 0:02:26]} 29. Rb6 {[%emt 0:02:17]} Nd8 {[%emt 0:00:45]} 30. Rxb5 {[%emt 0:09:47]} Rxc3 {[%emt 0:00:24]} 31. Rxe5 {[%emt 0:02:28]} Ne6 {[%emt 0:07:02]} 32. b5 {[%emt 0:01:26]} Rc1+ {[%emt 0:00:34]} 33. Nf1 {[%emt 0:00:05]} Rb1 {[%emt 0:00:02]} 34. b6 {[%emt 0:01:26]} Bd6 {[%emt 0:02:00]} 35. Rd5 {[%emt 0:03:48]} Bf4 {[%emt 0:00:08]} 36. Bxf4 {[%emt 0:00:24]} Nxf4 {[%emt 0:00:01]} 37. Rd8+ {[%emt 0:00:08]} Kg7 {[%emt 0:00:01]} 38. g3 {[%emt 0:00:20]} Ne6 {[%emt 0:02:00]} 39. Rd3 {[%emt 0:02:05]} Rxb6 {[%emt 0:00:20]} 40. f3 {[%emt 0:00:00]} Rb2 {[%emt 0:00:00]} 41. Rd2 {[%emt 0:02:03]} Rb3 {[%emt 0:06:55]} 42. Kg2 {[%emt 0:00:07]} g5 {[%emt 0:02:25]} 43. Rf2 {[%emt 0:04:30]} Nc5 {[%emt 0:05:46]} 44. Re2 {[%emt 0:05:36]} 1/2-1/2

[Event "3rd Memorial Warakomska 2019"]
[Site "Suwalki"]
[Date "2019.08.09"]
[Round "6.25"]
[White "Wiewiora, Eneasz"]
[Black "Sharankov, Grigory"]
[Result "0-1"]
[ECO "C00"]
[WhiteElo "2344"]
[BlackElo "2221"]
[Annotator "NA"]
[PlyCount "108"]
[EventDate "2019.08.05"]
[EventType "swiss"]
[EventCountry "POL"]
[SourceTitle "playchess.com"]
[Source "ChessBase"]
[SourceQuality "1"]
[TimeControl "40/5400+30:1800+30"]

1. e4 {[%emt 0:00:00]} e6 {[%emt 0:00:00]} 2. d4 {[%emt 0:00:00]} d5 {[%emt 0:00:00]} 3. Bd3 {[%emt 0:00:00]} c5 {[%emt 0:00:08]} 4. exd5 {[%emt 0:00:00]} exd5 {[%emt 0:00:06]} 5. Nf3 {[%emt 0:00:00]} c4 {[%emt 0:00:34]} 6. Be2 {[%emt 0:00:00]} Bd6 {[%emt 0:00:29]} 7. O-O {[%emt 0:00:00]} Ne7 {[%emt 0:00:04]} 8. b3 {[%emt 0:00:15]} cxb3 {[%emt 0:00:03]} 9. axb3 {[%emt 0:00:03]} Nbc6 {[%emt 0:01:01]} 10. Re1 {[%emt 0:00:29]} O-O {[%emt 0:00:28]} 11. c3 {[%emt 0:03:40]} h6 {[%emt 0:03:27]} 12. Nbd2 {[%emt 0:02:18]} Be6 {[%emt 0:01:21]} 13. Nf1 {[%emt 0:00:49]} Rc8 {[%emt 0:05:09]} 14. Ng3 {[%emt 0:03:39]} Nf5 {[%emt 0:06:58]} 15. Nh5 {[%emt 0:10:54]} a6 {[%emt 0:07:14]} 16. Bd2 {[%emt 0:12:48]} g6 {[%emt 0:12:05]} 17. Nf4 {[%emt 0:15:45]} Qf6 {[%emt 0:00:46]} 18. Nd3 {[%emt 0:00:22]} Rfe8 {[%emt 0:06:34]} 19. Nfe5 {[%emt 0:09:15]} Qg7 {[%emt 0:22:10]} 20. Nxc6 {[%emt 0:12:45]} Rxc6 {[%emt 0:00:19]} 21. Bf3 {[%emt 0:00:09]} Rcc8 {[%emt 0:01:46]} 22. g3 {[%emt 0:00:06]} h5 {[%emt 0:02:09]} 23. b4 {[%emt 0:06:29]} Qf6 {[%emt 0:02:54]} 24. Bg2 {[%emt 0:03:56]} Ng7 {[%emt 0:06:33]} 25. Qb3 {[%emt 0:05:58]} Qf5 {[%emt 0:05:18]} 26. Nc5 {[%emt 0:01:22]} Rc7 {[%emt 0:03:49]} 27. Re3 {[%emt 0:01:16]} h4 {[%emt 0:00:40]} 28. Rae1 {[%emt 0:01:12]} Rce7 {[%emt 0:01:56]} 29. Re5 {[%emt 0:05:03]} Bc8 {[%emt 0:05:27]} 30. Rxe7 {[%emt 0:01:57]} Rxe7 {[%emt 0:00:01]} 31. Qxd5 {[%emt 0:01:47]} Rxe1+ {[%emt 0:00:57]} 32. Bxe1 {[%emt 0:00:02]} Qb1 {[%emt 0:00:26]} 33. Qe4 {[%emt 0:00:44]} Qa1 {[%emt 0:00:57]} 34. Qe2 {[%emt 0:01:25]} b6 {[%emt 0:03:58]} 35. Ne4 {[%emt 0:00:24]} Be7 {[%emt 0:00:00]} 36. d5 {[%emt 0:01:00]} a5 {[%emt 0:00:26]} 37. d6 {[%emt 0:00:31]} Bd8 {[%emt 0:00:07]} 38. bxa5 {[%emt 0:00:12]} bxa5 39. Bf1 {[%emt 0:01:54]} Ne6 {[%emt 0:01:33]} 40. Qd2 {[%emt 0:00:00]} Bb7 {[%emt 0:00:00]} 41. f3 {[%emt 0:10:30]} Bxe4 {[%emt 0:18:33]} 42. fxe4 {[%emt 0:00:13]} Ng5 {[%emt 0:00:10]} 43. Bg2 {[%emt 0:09:46]} h3 {[%emt 0:00:45]} 44. Bh1 {[%emt 0:00:05]} a4 {[%emt 0:00:39]} 45. e5 {[%emt 0:00:04]} Qb1 {[%emt 0:04:40]} 46. g4 {[%emt 0:06:04]} a3 {[%emt 0:05:48]} 47. Bd5 {[%emt 0:00:02]} Nf3+ {[%emt 0:01:31]} 48. Bxf3 {[%emt 0:00:28]} a2 {[%emt 0:00:00]} 49. e6 {[%emt 0:03:10]} a1=Q {[%emt 0:01:35]} 50. exf7+ {[%emt 0:00:41]} Kxf7 {[%emt 0:00:26]} 51. Bd5+ {[%emt 0:00:18]} Kg7 {[%emt 0:00:06]} 52. Kf1 {[%emt 0:00:04]} Bh4 {[%emt 0:01:08]} 53. Qd4+ {[%emt 0:00:15]} Bf6 {[%emt 0:00:01]} 54. Qe3 {[%emt 0:01:04]} Qxc3 {[%emt 0:01:17]} 0-1

[Event "3rd Memorial Warakomska 2019"]
[Site "Suwalki"]
[Date "2019.08.09"]
[Round "6.26"]
[White "Efroimski, Marsel"]
[Black "Dzhuguryan, Tygran"]
[Result "1-0"]
[ECO "B17"]
[WhiteElo "2318"]
[BlackElo "2230"]
[Annotator "NA"]
[PlyCount "59"]
[EventDate "2019.08.05"]
[EventType "swiss"]
[EventCountry "POL"]
[SourceTitle "playchess.com"]
[Source "ChessBase"]
[SourceQuality "1"]
[TimeControl "40/5400+30:1800+30"]

1. e4 {[%emt 0:00:00]} c6 {[%emt 0:00:00]} 2. d4 {[%emt 0:00:00]} d5 {[%emt 0:00:00]} 3. Nd2 {[%emt 0:00:19]} dxe4 {[%emt 0:00:16]} 4. Nxe4 {[%emt 0:00:03]} Nd7 {[%emt 0:00:04]} 5. Bc4 {[%emt 0:01:10]} Ngf6 {[%emt 0:01:05]} 6. Ng5 {[%emt 0:00:05]} e6 {[%emt 0:00:15]} 7. Qe2 {[%emt 0:00:35]} Nb6 {[%emt 0:00:28]} 8. Bd3 {[%emt 0:00:10]} h6 {[%emt 0:00:37]} 9. N5f3 {[%emt 0:08:51]} c5 {[%emt 0:00:09]} 10. dxc5 {[%emt 0:11:45]} Bxc5 {[%emt 0:00:07]} 11. Ne5 {[%emt 0:00:10]} O-O {[%emt 0:15:44]} 12. Ngf3 {[%emt 0:04:40]} Nbd5 {[%emt 0:03:23]} 13. a3 {[%emt 0:02:25]} Nd7 {[%emt 0:09:48]} 14. Bd2 {[%emt 0:12:15]} Nxe5 {[%emt 0:08:48]} 15. Nxe5 {[%emt 0:00:15]} Qe7 {[%emt 0:06:30]} 16. O-O-O {[%emt 0:21:20]} Rd8 {[%emt 0:07:38]} 17. Kb1 {[%emt 0:10:20]} Bd7 {[%emt 0:00:41]} 18. g4 {[%emt 0:02:05]} Bc6 {[%emt 0:03:19]} 19. h4 {[%emt 0:03:24]} Bd4 {[%emt 0:20:45]} 20. g5 {[%emt 0:06:25]} Bxe5 {[%emt 0:01:09]} 21. Qxe5 {[%emt 0:00:05]} h5 {[%emt 0:00:36]} 22. g6 {[%emt 0:08:27]} Nf6 {[%emt 0:00:48]} 23. Rhg1 {[%emt 0:00:35]} Rd5 {[%emt 0:03:22]} 24. Qg3 {[%emt 0:02:05]} Rad8 {[%emt 0:00:50]} 25. Rde1 {[%emt 0:01:55]} Rd4 {[%emt 0:04:32]} 26. Bb4 {[%emt 0:02:33]} Qd7 {[%emt 0:00:50]} 27. Qg5 {[%emt 0:00:59]} Rg4 {[%emt 0:05:02]} 28. Rxg4 {[%emt 0:00:05]} hxg4 {[%emt 0:00:02]} 29. Bc3 {[%emt 0:00:29]} Nd5 {[%emt 0:01:45]} 30. gxf7+ {[%emt 0:00:08]} 1-0

[Event "3rd Memorial Warakomska 2019"]
[Site "Suwalki"]
[Date "2019.08.09"]
[Round "6.27"]
[White "Pniaczek, Marek"]
[Black "Fiedorek, Michal"]
[Result "1-0"]
[ECO "E68"]
[WhiteElo "2276"]
[BlackElo "2241"]
[Annotator "NA"]
[PlyCount "71"]
[EventDate "2019.08.05"]
[EventType "swiss"]
[EventCountry "POL"]
[SourceTitle "playchess.com"]
[Source "ChessBase"]
[SourceQuality "1"]
[TimeControl "40/5400+30:1800+30"]

1. d4 {[%emt 0:00:00]} Nf6 {[%emt 0:00:00]} 2. Nf3 {[%emt 0:00:00]} g6 {[%emt 0:00:00]} 3. c4 {[%emt 0:00:00]} Bg7 {[%emt 0:00:00]} 4. g3 {[%emt 0:00:00]} O-O {[%emt 0:00:20]} 5. Bg2 {[%emt 0:00:00]} d6 {[%emt 0:00:17]} 6. O-O {[%emt 0:00:00]} Nbd7 {[%emt 0:01:13]} 7. Nc3 {[%emt 0:00:58]} e5 {[%emt 0:00:12]} 8. e4 {[%emt 0:01:22]} exd4 {[%emt 0:00:33]} 9. Nxd4 {[%emt 0:00:07]} Re8 {[%emt 0:00:20]} 10. Re1 {[%emt 0:02:08]} Nc5 {[%emt 0:01:02]} 11. h3 {[%emt 0:11:35]} Bd7 {[%emt 0:01:16]} 12. Bf4 {[%emt 0:04:50]} h6 {[%emt 0:01:21]} 13. Qc2 {[%emt 0:05:03]} Ne6 {[%emt 0:56:12]} 14. Nxe6 {[%emt 0:06:36]} Bxe6 {[%emt 0:00:07]} 15. b3 {[%emt 0:01:39]} Nh5 {[%emt 0:02:15]} 16. Be3 {[%emt 0:01:07]} c6 {[%emt 0:01:28]} 17. Rad1 {[%emt 0:08:58]} Qa5 {[%emt 0:01:15]} 18. Bd4 {[%emt 0:00:32]} Rad8 {[%emt 0:01:35]} 19. Bxg7 {[%emt 0:07:02]} Kxg7 {[%emt 0:00:36]} 20. Rd4 {[%emt 0:01:47]} Re7 {[%emt 0:13:31]} 21. Red1 {[%emt 0:08:08]} Red7 {[%emt 0:00:48]} 22. Qb2 {[%emt 0:03:02]} Kh7 {[%emt 0:01:42]} 23. Ne2 {[%emt 0:06:57]} g5 {[%emt 0:03:26]} 24. Qc2 {[%emt 0:04:47]} Qe5 {[%emt 0:03:32]} 25. Qd2 {[%emt 0:01:20]} f5 {[%emt 0:02:27]} 26. exf5 {[%emt 0:01:06]} Bf7 {[%emt 0:03:16]} 27. Re4 {[%emt 0:07:06]} Qc5 {[%emt 0:01:12]} 28. b4 {[%emt 0:01:21]} Qb6 {[%emt 0:01:34]} 29. h4 {[%emt 0:01:38]} Nf6 {[%emt 0:01:36]} 30. hxg5 {[%emt 0:03:46]} Nxe4 {[%emt 0:00:15]} 31. g6+ {[%emt 0:00:09]} Kg7 {[%emt 0:00:30]} 32. Bxe4 {[%emt 0:00:11]} Bxc4 {[%emt 0:00:54]} 33. Qc3+ {[%emt 0:00:21]} Kf8 {[%emt 0:00:47]} 34. Qxc4 {[%emt 0:00:42]} d5 {[%emt 0:00:09]} 35. Qc3 {[%emt 0:00:15]} dxe4 {[%emt 0:00:26]} 36. Qh8+ {[%emt 0:00:07]} 1-0

[Event "3rd Memorial Warakomska 2019"]
[Site "Suwalki"]
[Date "2019.08.09"]
[Round "6.28"]
[White "Walter, Szymon"]
[Black "Bachor, Tomasz"]
[Result "1-0"]
[ECO "D01"]
[WhiteElo "2314"]
[BlackElo "2022"]
[Annotator "NA"]
[PlyCount "99"]
[EventDate "2019.08.05"]
[EventType "swiss"]
[EventCountry "POL"]
[SourceTitle "playchess.com"]
[Source "ChessBase"]
[SourceQuality "1"]
[TimeControl "40/5400+30:1800+30"]

1. d4 Nf6 2. Nc3 d5 3. Bg5 Bf5 4. f3 Nbd7 5. Qd2 h6 6. Bh4 c6 7. O-O-O g5 8. Bf2 e6 9. g4 Bh7 10. h4 Bb4 11. a3 Ba5 12. hxg5 hxg5 13. Be1 Rg8 14. e3 b5 15. Bd3 Bxd3 16. Qxd3 Bc7 17. e4 Nb6 18. e5 Nfd7 19. f4 Nf8 20. f5 Qd7 21. Nf3 Nc4 22. b3 Nb6 23. Rh5 exf5 24. gxf5 g4 25. Ng5 Qe7 26. Bh4 Qxa3+ 27. Kd2 Qb4 28. Re1 O-O-O 29. Nxf7 Re8 30. Kd1 a5 31. Rh6 Kb7 32. Na2 Qa3 33. Qc3 Ne6 34. fxe6 Qxa2 35. Nd6+ Bxd6 36. exd6 b4 37. Rh7+ Ka6 38. Qd3+ Nc4 39. bxc4 dxc4 40. Qe4 Qa1+ 41. Ke2 Rxe6 42. Qxe6 Qc3 43. Qxg8 Qf3+ 44. Kd2 Qc3+ 45. Kd1 Qxd4+ 46. Ke2 Qe4+ 47. Kf2 g3+ 48. Bxg3 Qf5+ 49. Kg1 Qc5+ 50. Bf2 1-0

[Event "3rd Memorial Warakomska 2019"]
[Site "Suwalki"]
[Date "2019.08.09"]
[Round "6.29"]
[White "Klimkowski, Jan"]
[Black "Reza, Wojciech"]
[Result "1/2-1/2"]
[ECO "C95"]
[WhiteElo "1985"]
[BlackElo "2261"]
[Annotator "NA"]
[PlyCount "124"]
[EventDate "2019.08.05"]
[EventType "swiss"]
[EventCountry "POL"]
[SourceTitle "playchess.com"]
[Source "ChessBase"]
[SourceQuality "1"]
[TimeControl "40/5400+30:1800+30"]

1. e4 {[%emt 0:00:00]} e5 {[%emt 0:01:18]} 2. Nf3 {[%emt 0:00:00]} Nc6 {[%emt 0:00:11]} 3. Bb5 {[%emt 0:00:00]} a6 {[%emt 0:00:25]} 4. Ba4 {[%emt 0:00:00]} Nf6 {[%emt 0:00:41]} 5. O-O {[%emt 0:00:10]} Be7 {[%emt 0:00:30]} 6. Re1 {[%emt 0:00:09]} b5 {[%emt 0:00:19]} 7. Bb3 {[%emt 0:00:06]} d6 {[%emt 0:00:21]} 8. c3 {[%emt 0:00:33]} O-O {[%emt 0:00:19]} 9. h3 {[%emt 0:00:34]} Nb8 {[%emt 0:02:04]} 10. d4 {[%emt 0:02:29]} Nbd7 {[%emt 0:00:13]} 11. Nbd2 {[%emt 0:00:58]} Bb7 {[%emt 0:00:26]} 12. Bc2 {[%emt 0:02:05]} Re8 {[%emt 0:02:19]} 13. Nf1 {[%emt 0:00:58]} Bf8 {[%emt 0:00:26]} 14. Ng3 {[%emt 0:01:27]} g6 {[%emt 0:00:31]} 15. Be3 {[%emt 0:04:13]} exd4 {[%emt 0:08:06]} 16. Bxd4 {[%emt 0:02:01]} c5 {[%emt 0:01:31]} 17. Bxf6 {[%emt 0:00:46]} Nxf6 {[%emt 0:08:02]} 18. Qd2 {[%emt 0:01:52]} d5 {[%emt 0:13:01]} 19. e5 {[%emt 0:08:25]} Nd7 {[%emt 0:01:34]} 20. Qf4 {[%emt 0:00:59]} Qe7 {[%emt 0:07:21]} 21. Re2 {[%emt 0:06:37]} Bg7 {[%emt 0:00:55]} 22. Rae1 {[%emt 0:01:39]} Nf8 {[%emt 0:00:43]} 23. h4 {[%emt 0:08:34]} Ne6 {[%emt 0:01:07]} 24. Qc1 {[%emt 0:01:02]} Rad8 {[%emt 0:08:16]} 25. Rd1 {[%emt 0:09:08]} Qf8 {[%emt 0:11:47]} 26. a3 {[%emt 0:12:34]} a5 {[%emt 0:08:00]} 27. Ree1 {[%emt 0:03:06]} Bh6 {[%emt 0:02:42]} 28. Ng5 {[%emt 0:02:03]} f6 {[%emt 0:01:58]} 29. exf6 {[%emt 0:01:31]} Qxf6 {[%emt 0:00:23]} 30. Qe3 {[%emt 0:02:35]} Bxg5 {[%emt 0:04:14]} 31. hxg5 {[%emt 0:00:49]} Qxg5 {[%emt 0:00:08]} 32. Qxg5 {[%emt 0:02:58]} Nxg5 {[%emt 0:00:09]} 33. f4 {[%emt 0:00:28]} Nf7 {[%emt 0:01:10]} 34. b4 {[%emt 0:03:35]} cxb4 {[%emt 0:10:52]} 35. cxb4 {[%emt 0:00:34]} Nd6 {[%emt 0:02:17]} 36. Rxe8+ {[%emt 0:03:32]} Rxe8 {[%emt 0:00:13]} 37. Bb3 {[%emt 0:02:00]} Re3 {[%emt 0:03:24]} 38. Bxd5+ {[%emt 0:00:03]} Bxd5 {[%emt 0:00:18]} 39. Rxd5 {[%emt 0:00:04]} Rxg3 {[%emt 0:00:37]} 40. Rxd6 {[%emt 0:00:00]} Rxa3 {[%emt 0:00:00]} 41. bxa5 {[%emt 0:00:41]} Rxa5 {[%emt 0:00:58]} 42. Rd7 {[%emt 0:00:53]} Ra2 {[%emt 0:04:24]} 43. Rb7 {[%emt 0:00:35]} Rb2 {[%emt 0:00:10]} 44. Kh2 {[%emt 0:00:35]} Rb3 {[%emt 0:14:26]} 45. g3 {[%emt 0:02:18]} Rb1 {[%emt 0:05:32]} 46. Kh3 {[%emt 0:02:28]} Rh1+ {[%emt 0:06:58]} 47. Kg2 {[%emt 0:01:34]} Rh5 {[%emt 0:00:31]} 48. Kf3 {[%emt 0:01:32]} Rc5 {[%emt 0:00:21]} 49. Ke4 {[%emt 0:02:40]} h5 {[%emt 0:01:32]} 50. Kd4 {[%emt 0:00:46]} Rf5 {[%emt 0:00:31]} 51. Ke4 {[%emt 0:00:05]} Kf8 {[%emt 0:00:32]} 52. Ke3 {[%emt 0:00:45]} Kg8 {[%emt 0:00:30]} 53. Ke4 {[%emt 0:00:11]} Kh8 {[%emt 0:00:17]} 54. Ke3 {[%emt 0:00:12]} Rc5 {[%emt 0:00:46]} 55. Kd4 {[%emt 0:00:12]} Rf5 {[%emt 0:00:34]} 56. Ke4 {[%emt 0:00:14]} Kg8 {[%emt 0:00:20]} 57. Ke3 {[%emt 0:00:03]} g5 {[%emt 0:00:45]} 58. Ke4 {[%emt 0:01:27]} Rc5 {[%emt 0:00:06]} 59. Kd4 {[%emt 0:02:05]} Rf5 {[%emt 0:00:07]} 60. Ke4 {[%emt 0:00:03]} Rc5 {[%emt 0:00:04]} 61. Kd4 {[%emt 0:00:14]} Rc4+ {[%emt 0:01:43]} 62. Kd3 {[%emt 0:00:45]} gxf4 {[%emt 0:00:30] Ke4} 1/2-1/2

[Event "3rd Memorial Warakomska 2019"]
[Site "Suwalki"]
[Date "2019.08.09"]
[Round "6.30"]
[White "Sowul, Bartosz"]
[Black "Paszewski, Mateusz"]
[Result "1/2-1/2"]
[ECO "A06"]
[WhiteElo "2210"]
[BlackElo "2324"]
[Annotator "NA"]
[PlyCount "54"]
[EventDate "2019.08.05"]
[EventType "swiss"]
[EventCountry "POL"]
[SourceTitle "playchess.com"]
[Source "ChessBase"]
[SourceQuality "1"]
[TimeControl "40/5400+30:1800+30"]

1. Nf3 {[%emt 0:00:00]} d5 {[%emt 0:00:00]} 2. c4 {[%emt 0:00:02]} c6 {[%emt 0:00:00]} 3. g3 {[%emt 0:00:48]} Bg4 {[%emt 0:03:12]} 4. Bg2 {[%emt 0:02:20]} e6 {[%emt 0:00:47]} 5. Qb3 {[%emt 0:01:54]} Qb6 {[%emt 0:01:42]} 6. Qc2 {[%emt 0:00:06]} Nd7 {[%emt 0:02:11]} 7. b3 {[%emt 0:00:08]} Ngf6 {[%emt 0:02:25]} 8. O-O {[%emt 0:00:13]} Be7 {[%emt 0:00:29]} 9. Bb2 {[%emt 0:00:12]} O-O {[%emt 0:01:05]} 10. d3 {[%emt 0:00:51]} a5 {[%emt 0:04:15]} 11. Nbd2 {[%emt 0:00:33]} Rfd8 {[%emt 0:02:16]} 12. Rfe1 {[%emt 0:20:53]} a4 {[%emt 0:05:01]} 13. Rec1 {[%emt 0:03:37]} Ne8 {[%emt 0:06:01]} 14. e4 {[%emt 0:11:01]} dxe4 {[%emt 0:04:23]} 15. Nxe4 {[%emt 0:00:21]} axb3 {[%emt 0:10:52]} 16. axb3 {[%emt 0:00:37]} Bxf3 {[%emt 0:01:38]} 17. Bxf3 {[%emt 0:01:46]} Rxa1 {[%emt 0:04:12]} 18. Rxa1 {[%emt 0:12:37]} Nc5 {[%emt 0:02:10]} 19. Nxc5 {[%emt 0:06:54]} Bxc5 {[%emt 0:00:20]} 20. Ra2 {[%emt 0:01:47]} Nd6 {[%emt 0:09:11]} 21. g4 {[%emt 0:06:55]} Ne8 22. Be5 Bd4 {[%emt 0:08:20]} 23. Bg3 {[%emt 0:08:56]} e5 {[%emt 0:00:10]} 24. Ra4 {[%emt 0:01:19]} Nc7 {[%emt 0:04:38]} 25. b4 {[%emt 0:06:16]} Ne6 {[%emt 0:02:40]} 26. Qe2 {[%emt 0:04:10]} Qc7 {[%emt 0:02:19]} 27. Ra5 {[%emt 0:05:55]} Kf8 {[%emt 0:09:27]} 1/2-1/2

[Event "3rd Memorial Warakomska 2019"]
[Site "Suwalki"]
[Date "2019.08.09"]
[Round "6.31"]
[White "Koziol, Kamil"]
[Black "Lisowski, Krzysztof"]
[Result "1-0"]
[ECO "A18"]
[WhiteElo "2307"]
[BlackElo "2187"]
[Annotator "NA"]
[PlyCount "83"]
[EventDate "2019.08.05"]
[EventType "swiss"]
[EventCountry "POL"]
[SourceTitle "playchess.com"]
[Source "ChessBase"]
[SourceQuality "1"]
[TimeControl "40/5400+30:1800+30"]

1. c4 {[%emt 0:00:00]} e6 {[%emt 0:00:53]} 2. Nc3 {[%emt 0:01:06]} Nf6 {[%emt 0:01:17]} 3. e4 {[%emt 0:00:39]} d5 {[%emt 0:00:07]} 4. e5 {[%emt 0:00:22]} d4 {[%emt 0:00:15]} 5. exf6 {[%emt 0:00:13]} dxc3 {[%emt 0:00:07]} 6. bxc3 {[%emt 0:00:10]} Qxf6 {[%emt 0:00:09]} 7. d4 {[%emt 0:00:16]} e5 {[%emt 0:02:29]} 8. Nf3 {[%emt 0:01:33]} exd4 {[%emt 0:05:10]} 9. Bg5 {[%emt 0:01:44]} Qe6+ {[%emt 0:00:54]} 10. Be2 {[%emt 0:00:08]} Be7 {[%emt 0:02:53]} 11. Bxe7 {[%emt 0:00:40]} d3 {[%emt 0:14:25]} 12. Qxd3 {[%emt 0:00:05]} Qxe7 {[%emt 0:00:14]} 13. O-O {[%emt 0:07:43]} O-O {[%emt 0:01:56]} 14. Rab1 {[%emt 0:08:01]} Nd7 {[%emt 0:09:36]} 15. Rfe1 {[%emt 0:05:49]} Nc5 {[%emt 0:19:00]} 16. Qd5 {[%emt 0:07:18]} Be6 {[%emt 0:05:01]} 17. Qh5 {[%emt 0:01:37]} Rad8 {[%emt 0:10:44]} 18. Nd4 {[%emt 0:10:12]} g6 {[%emt 0:06:50]} 19. Qh6 {[%emt 0:03:06]} Qf6 {[%emt 0:00:50]} 20. Bf1 {[%emt 0:01:56]} Bc8 {[%emt 0:04:55]} 21. Re3 {[%emt 0:04:44]} c6 {[%emt 0:03:55]} 22. Rbe1 {[%emt 0:04:43]} Qg7 {[%emt 0:01:10]} 23. Qh4 {[%emt 0:01:10]} h6 {[%emt 0:04:41]} 24. Qe7 {[%emt 0:06:41]} Ne6 {[%emt 0:00:41]} 25. Nxe6 {[%emt 0:00:49]} fxe6 {[%emt 0:00:07]} 26. Qc5 {[%emt 0:01:34]} Rd2 {[%emt 0:01:11]} 27. R1e2 {[%emt 0:01:35]} Rxe2 {[%emt 0:00:54]} 28. Bxe2 {[%emt 0:00:37]} a6 {[%emt 0:00:26]} 29. h4 {[%emt 0:02:53]} Qf6 {[%emt 0:01:21]} 30. Rf3 {[%emt 0:01:40]} Qd8 {[%emt 0:00:07]} 31. Rg3 {[%emt 0:00:37]} Kg7 {[%emt 0:00:56]} 32. Bd3 {[%emt 0:01:24]} Rf6 {[%emt 0:00:21]} 33. Qe5 {[%emt 0:00:22]} Kf7 {[%emt 0:00:23]} 34. Qe4 {[%emt 0:05:21]} Qg8 {[%emt 0:00:47]} 35. f4 {[%emt 0:00:22]} h5 {[%emt 0:01:00]} 36. Qd4 {[%emt 0:01:52]} Qf8 {[%emt 0:00:29]} 37. Rg5 {[%emt 0:00:25]} Qe8 {[%emt 0:01:09]} 38. g4 {[%emt 0:04:06]} hxg4 {[%emt 0:00:19]} 39. h5 {[%emt 0:00:18]} gxh5 {[%emt 0:00:30]} 40. Rxh5 {[%emt 0:00:00]} Ke7 {[%emt 0:00:00]} 41. Rh7+ {[%emt 0:03:50]} Rf7 {[%emt 0:01:16]} 42. Rh8 {[%emt 0:00:47]} 1-0